fUSD/lending_fUSD_20240628
["ID","MTS","AMOUNT","RATE_DAILY","PERIOD"]
[330549233,1719561195495,-1285.82,0.00022191,3]
[330549234,1719561195504,-1675.94,0.00022191,3]
[330549235,1719561195514,-500.0,0.00022191,3]
[330549236,1719561195523,-536.38,0.00022191,3]
[330549237,1719561195532,-500.0,0.00022191,3]
[330549238,1719561195542,-1080.4,0.00022191,3]
[330549239,1719561195552,-1091.76,0.00022191,3]
[330549240,1719561195561,-3936.72,0.00022191,3]
[330549241,1719561195570,-1135.8,0.00022191,3]
[330549242,1719561195584,-500.0,0.00022191,3]
[330549243,1719561195593,-158.53907967,0.00022191,3]
[330549244,1719561195603,-500.0,0.00022191,3]
[330549245,1719561195613,-4738.44,0.00022191,3]
[330549246,1719561195623,-500.0,0.00022191,3]
[330549247,1719561195632,-1651.05,0.00022191,3]
[330549248,1719561195643,-1956.77,0.00022191,3]
[330549249,1719561195663,-614.98,0.00022191,3]
[330549250,1719561195683,-933.08,0.00022191,3]
[330549251,1719561195700,-500.0,0.00022191,3]
[330549252,1719561195720,-280.72,0.00022191,7]
[330549253,1719561195742,-2667.99,0.00022191,3]
[330549254,1719561195760,-823.18,0.00022191,3]
[330549255,1719561195779,-6250.57,0.00022191,3]
[330549256,1719561195794,-1063.1,0.00022191,3]
[330549257,1719561195811,-1293.08,0.00022191,3]
[330549258,1719561195830,-500.0,0.00022191,3]
[330549259,1719561195851,-5103.03,0.00022191,3]
[330549260,1719561195866,-4756.33,0.00022191,3]
[330549261,1719561195883,-721.31,0.00022191,3]
[330549262,1719561195899,-1439.83,0.00022191,3]
[330549263,1719561195917,-500.0,0.00022191,3]
[330549264,1719561195933,-2458.51,0.00022191,3]
[330549265,1719561195951,-500.0,0.00022191,3]
[330549266,1719561195967,-1211.11,0.00022191,3]
[330549267,1719561195988,-770.64,0.00022191,3]
[330549268,1719561196003,-552.09,0.00022191,3]
[330549269,1719561196018,-3750.61,0.00022191,3]
[330549270,1719561196035,-500.0,0.00022191,3]
[330549271,1719561196051,-500.0,0.00022191,3]
[330549272,1719561196066,-2098.22,0.00022191,3]
[330549273,1719561196084,-500.0,0.00022191,3]
[330549274,1719561196099,-754.56,0.00022191,3]
[330549275,1719561196115,-4491.42,0.00022191,3]
[330549276,1719561196131,-500.0,0.00022191,3]
[330549277,1719561196148,-2438.38,0.00022191,3]
[330549278,1719561196164,-2020.73,0.00022191,3]
[330549279,1719561196179,-1992.71,0.00022191,3]
[330549280,1719561196195,-781.62,0.00022191,3]
[330549281,1719561196211,-500.0,0.00022191,3]
[330549282,1719561196226,-1432.47,0.00022191,3]
[330549283,1719561196242,-1548.3,0.00022191,3]
[330549284,1719561196258,-500.0,0.00022191,3]
[330549285,1719561196273,-5534.77,0.00022191,3]
[330549286,1719561196289,-885.59,0.00022191,3]
[330549287,1719561196305,-1994.67,0.00022191,3]
[330549288,1719561196320,-1403.1,0.00022191,3]
[330549289,1719561196335,-2686.24,0.00022191,3]
[330549290,1719561196349,-814.93,0.00022191,3]
[330549291,1719561196364,-526.81,0.00022191,3]
[330549292,1719561196379,-4164.92,0.00022191,3]
[330549293,1719561196394,-3931.36,0.00022191,3]
[330549294,1719561196410,-500.0,0.00022191,3]
[330549295,1719561196426,-1627.14,0.00022191,3]
[330549296,1719561196440,-500.0,0.00022191,3]
[330549297,1719561196455,-1739.9,0.00022191,3]
[330549298,1719561196471,-1201.25,0.00022191,3]
[330549299,1719561196486,-823.37,0.00022191,3]
[330549300,1719561196502,-1677.95,0.00022191,3]
[330549301,1719561196518,-500.0,0.00022191,3]
[330549302,1719561196535,-4579.29,0.00022191,3]
[330549303,1719561196550,-2423.48,0.00022191,3]
[330549304,1719561196565,-564.34,0.00022191,3]
[330549305,1719561196581,-500.0,0.00022191,3]
[330549306,1719561196596,-500.0,0.00022191,3]
[330549307,1719561196612,-3220.4,0.00022191,3]
[330549308,1719561196627,-500.0,0.00022191,3]
[330549309,1719561196643,-4356.08,0.00022191,3]
[330549310,1719561196660,-2461.19,0.00022191,3]
[330549311,1719561196676,-10448.28,0.00022191,3]
[330549312,1719561196692,-575.39,0.00022191,3]
[330549313,1719561196709,-848.23,0.00022191,3]
[330549314,1719561196724,-571.54,0.00022191,3]
[330549315,1719561196740,-500.0,0.00022191,3]
[330549316,1719561196755,-1688.67,0.00022191,3]
[330549317,1719561196770,-4745.96,0.00022191,3]
[330549318,1719561196786,-500.0,0.00022191,3]
[330549319,1719561196801,-662.7,0.00022191,3]
[330549320,1719561196817,-1372.06,0.00022191,3]
[330549321,1719561196833,-504.88,0.00022191,3]
[330549322,1719561196849,-500.0,0.00022191,3]
[330549323,1719561196866,-1056.34,0.00022191,3]
[330549324,1719561196887,-606.3,0.00022191,3]
[330549325,1719561196903,-1074.08,0.00022191,3]
[330549326,1719561196918,-2441.39,0.00022191,3]
[330549327,1719561196933,-2465.9,0.00022191,3]
[330549328,1719561196950,-1390.74,0.00022191,3]
[330549329,1719561196964,-1781.97,0.00022191,3]
[330549330,1719561196979,-935.7,0.00022191,3]
[330549331,1719561196994,-500.0,0.00022191,3]
[330549332,1719561197007,-500.0,0.00022191,3]
[330549333,1719561197022,-500.0,0.00022191,3]
[330549334,1719561197037,-525.03,0.00022191,3]
[330549335,1719561197053,-668.57,0.00022191,3]
[330549336,1719561197068,-500.0,0.00022191,3]
[330549337,1719561197084,-1463.5,0.00022191,3]
[330549338,1719561197098,-3285.77,0.00022191,3]
[330549339,1719561197112,-1552.82,0.00022191,3]
[330549340,1719561197126,-1287.58,0.00022191,3]
[330549341,1719561197141,-1253.08,0.00022191,3]
[330549342,1719561197155,-1221.61,0.00022191,3]
[330549343,1719561197170,-500.0,0.00022191,3]
[330549344,1719561197185,-500.0,0.00022191,3]
[330549345,1719561197200,-2098.47,0.00022191,3]
[330549346,1719561197215,-861.59,0.00022191,3]
[330549347,1719561197231,-1171.21,0.00022191,3]
[330549348,1719561197246,-500.0,0.00022191,3]
[330549349,1719561197260,-3809.85,0.00022191,3]
[330549350,1719561197275,-1526.48,0.00022191,3]
[330549351,1719561197291,-1044.61,0.00022191,3]
[330549352,1719561197305,-500.0,0.00022191,3]
[330549353,1719561197321,-2191.37,0.00022191,3]
[330549354,1719561197338,-301.81544581,0.00022191,3]
[330549355,1719561197354,-2330.29,0.00022191,3]
[330549356,1719561197368,-1251.54,0.00022191,3]
[330549357,1719561197383,-3118.59,0.00022191,3]
[330549358,1719561197396,-1197.85,0.00022191,3]
[330549359,1719561197411,-500.0,0.00022191,3]
[330549360,1719561197424,-532.97,0.00022191,3]
[330549361,1719561197439,-2052.11,0.00022191,3]
[330549362,1719561197454,-500.0,0.00022191,3]
[330549363,1719561197469,-5026.87,0.00022191,3]
[330549364,1719561197485,-1566.0,0.00022191,3]
[330549365,1719561197500,-873.76,0.00022191,3]
[330549366,1719561197514,-3596.87,0.00022191,3]
[330549367,1719561197529,-1698.0,0.00022191,3]
[330549368,1719561197542,-1543.01,0.00022191,3]
[330549369,1719561197557,-3389.93,0.00022191,3]
[330549370,1719561197571,-648.91,0.00022191,3]
[330549371,1719561197587,-2335.36,0.00022191,3]
[330549372,1719561197602,-2869.58,0.00022191,3]
[330549373,1719561197618,-762.46,0.00022191,3]
[330549374,1719561197633,-595.54,0.00022191,3]
[330549375,1719561197648,-638.08,0.00022191,3]
[330549376,1719561197663,-978.5,0.00022191,3]
[330549377,1719561197678,-526.25,0.00022191,3]
[330549378,1719561197692,-780.19,0.00022191,3]
[330549379,1719561197708,-855.45,0.00022191,3]
[330549380,1719561197723,-1166.4,0.00022191,3]
[330549381,1719561197738,-779.68,0.00022191,3]
[330549382,1719561197753,-1703.63,0.00022191,3]
[330549383,1719561197767,-4108.34,0.00022191,3]
[330549384,1719561197783,-12184.84,0.00022191,3]
[330549385,1719561197799,-783.91,0.00022191,3]
[330549386,1719561197815,-655.17,0.00022191,3]
[330549387,1719561197830,-577.58,0.00022191,3]
[330549388,1719561197844,-1494.47,0.00022191,3]
[330549389,1719561197859,-1434.26,0.00022191,3]
[330549390,1719561197876,-1812.77,0.00022191,3]
[330549391,1719561197890,-803.64,0.00022191,3]
[330549392,1719561197904,-500.0,0.00022191,3]
[330549393,1719561197920,-8612.7,0.00022191,3]
[330549394,1719561197935,-500.0,0.00022191,3]
[330549395,1719561197953,-2570.43,0.00022191,3]
[330549396,1719561197967,-2233.3,0.00022191,3]
[330549397,1719561197982,-564.9,0.00022191,3]
[330549398,1719561197997,-833.81,0.00022191,3]
[330549399,1719561198012,-651.19,0.00022191,3]
[330549400,1719561198026,-990.66,0.00022191,3]
[330549401,1719561198040,-7571.09,0.00022191,3]
[330549402,1719561198055,-1393.07,0.00022191,3]
[330549403,1719561198070,-795.17,0.00022191,3]
[330549404,1719561198087,-1571.82,0.00022191,3]
[330549405,1719561198102,-803.77,0.00022191,3]
[330549406,1719561198116,-2442.19,0.00022191,3]
[330549407,1719561198131,-500.0,0.00022191,3]
[330549408,1719561198146,-500.0,0.00022191,3]
[330549409,1719561198160,-500.0,0.00022191,3]
[330549410,1719561198175,-500.0,0.00022191,3]
[330549411,1719561198189,-1017.76,0.00022191,3]
[330549412,1719561198202,-985.98,0.00022191,3]
[330549413,1719561198218,-3900.49,0.00022191,3]
[330549414,1719561198233,-623.56,0.00022191,3]
[330549415,1719561198248,-510.44,0.00022191,3]
[330549416,1719561198262,-673.35,0.00022191,3]
[330549417,1719561198277,-3626.35,0.00022191,3]
[330549418,1719561198292,-974.54,0.00022191,3]
[330549419,1719561198306,-3571.61,0.00022191,3]
[330549420,1719561198320,-500.0,0.00022191,3]
[330549421,1719561198334,-914.91,0.00022191,3]
[330549422,1719561198350,-4977.96,0.00022191,3]
[330549423,1719561198364,-1975.34,0.00022191,3]
[330549424,1719561198379,-668.22,0.00022191,3]
[330549425,1719561198392,-4103.33,0.00022191,3]
[330549426,1719561198406,-929.98,0.00022191,3]
[330549427,1719561198420,-690.61,0.00022191,3]
[330549428,1719561198435,-2114.11,0.00022191,3]
[330549429,1719561198449,-1628.46,0.00022191,3]
[330549430,1719561198472,-1444.66,0.00022191,3]
[330549431,1719561198488,-933.49,0.00022191,3]
[330549432,1719561198502,-2888.25,0.00022191,3]
[330549433,1719561198517,-1270.72,0.00022191,3]
[330549434,1719561198531,-3537.73,0.00022191,3]
[330549435,1719561198546,-1988.26,0.00022191,3]
[330549436,1719561198560,-646.8,0.00022191,3]
[330549437,1719561198576,-3537.83,0.00022191,3]
[330549438,1719561198591,-1016.96,0.00022191,3]
[330549439,1719561198609,-4400.98,0.00022191,3]
[330549440,1719561198623,-500.0,0.00022191,3]
[330549441,1719561198638,-500.0,0.00022191,3]
[330549442,1719561198653,-588.73,0.00022191,3]
[330549443,1719561198668,-768.32,0.00022191,3]
[330549444,1719561198682,-1070.33,0.00022191,3]
[330549445,1719561198696,-892.56,0.00022191,3]
[330549446,1719561198712,-743.46,0.00022191,3]
[330549447,1719561198726,-6545.79,0.00022191,3]
[330549448,1719561198740,-1231.54,0.00022191,3]
[330549449,1719561198755,-895.8,0.00022191,3]
[330549450,1719561198770,-500.0,0.00022191,3]
[330549451,1719561198784,-2097.83,0.00022191,3]
[330549452,1719561198799,-500.0,0.00022191,3]
[330549453,1719561198814,-3334.25,0.00022191,3]
[330549454,1719561198830,-3150.03,0.00022191,3]
[330549455,1719561198844,-500.0,0.00022191,3]
[330549456,1719561198858,-500.0,0.00022191,3]
[330549457,1719561198877,-610.61,0.00022191,3]
[330549458,1719561198891,-1099.72,0.00022191,3]
[330549459,1719561198908,-500.0,0.00022191,3]
[330549460,1719561198923,-1552.28,0.00022191,3]
[330549461,1719561198938,-500.0,0.00022191,3]
[330549462,1719561198955,-735.24,0.00022191,3]
[330549463,1719561198970,-1827.69,0.00022191,3]
[330549464,1719561199433,-2422.64,0.00022191,3]
[330549465,1719561199443,-3657.77,0.00022191,3]
[330549466,1719561199453,-500.0,0.00022191,3]
[330549467,1719561199462,-500.0,0.00022191,3]
[330549468,1719561199472,-2088.49,0.00022191,3]
[330549469,1719561199482,-561.79,0.00022191,3]
[330549470,1719561199491,-1243.28,0.00022191,3]
[330549471,1719561199500,-14987.84,0.00022191,3]
[330549472,1719561199510,-500.0,0.00022191,3]
[330549473,1719561199519,-1894.39,0.00022191,3]
[330549474,1719561199529,-890.94,0.00022191,3]
[330549475,1719561199538,-2029.23,0.00022191,3]
[330549476,1719561199548,-1128.27,0.00022191,3]
[330549477,1719561199557,-604.19,0.00022191,3]
[330549478,1719561199566,-2561.23,0.00022191,3]
[330549479,1719561199577,-500.0,0.00022191,3]
[330549480,1719561199587,-1302.81,0.00022191,3]
[330549481,1719561199597,-2467.25,0.00022191,3]
[330549482,1719561199606,-580.74,0.00022191,3]
[330549483,1719561199616,-2378.96,0.00022191,3]
[330549484,1719561199626,-519.05,0.00022191,3]
[330549485,1719561199635,-696.42,0.00022191,3]
[330549486,1719561199645,-1077.61,0.00022191,3]
[330549487,1719561199655,-3444.9,0.00022191,3]
[330549488,1719561199664,-500.0,0.00022191,3]
[330549489,1719561199674,-1810.22,0.00022191,3]
[330549490,1719561199683,-878.91,0.00022191,3]
[330549491,1719561199693,-5919.42,0.00022191,3]
[330549492,1719561199702,-931.76,0.00022191,3]
[330549493,1719561199712,-1058.14,0.00022191,3]
[330549494,1719561199722,-1072.86,0.00022191,3]
[330549495,1719561199732,-1191.34,0.00022191,3]
[330549496,1719561199741,-1586.1,0.00022191,3]
[330549497,1719561199751,-3215.98,0.00022191,3]
[330549498,1719561199760,-687.47,0.00022191,3]
[330549499,1719561199769,-1219.48,0.00022191,3]
[330549500,1719561199779,-12606.71,0.00022191,3]
[330549501,1719561199788,-836.18,0.00022191,3]
[330549502,1719561199798,-625.82,0.00022191,3]
[330549503,1719561199807,-1319.12,0.00022191,3]
[330549504,1719561199817,-1059.97,0.00022191,3]
[330549505,1719561199830,-1041.16,0.00022191,3]
[330549506,1719561199840,-1776.67,0.00022191,3]
[330549507,1719561199848,-500.0,0.00022191,3]
[330549508,1719561199858,-500.0,0.00022191,3]
[330549509,1719561199868,-833.16,0.00022191,3]
[330549510,1719561199879,-852.24,0.00022191,3]
[330549511,1719561199888,-832.89,0.00022191,3]
[330549512,1719561199896,-500.0,0.00022191,3]
[330549513,1719561199905,-500.0,0.00022191,3]
[330549514,1719561199917,-667.48,0.00022191,3]
[330549515,1719561199927,-1285.7,0.00022191,3]
[330549516,1719561199936,-1976.95,0.00022191,3]
[330549517,1719561199946,-1115.81,0.00022191,3]
[330549518,1719561199955,-620.27,0.00022191,3]
[330549519,1719561199965,-1542.91,0.00022191,3]
[330549520,1719561199974,-1980.39,0.00022191,3]
[330549521,1719561199983,-500.0,0.00022191,3]
[330549522,1719561199992,-1594.11,0.00022191,3]
[330549523,1719561200001,-500.0,0.00022191,3]
[330549524,1719561200011,-1240.01,0.00022191,3]
[330549525,1719561200020,-1834.65,0.00022191,3]
[330549526,1719561200029,-1531.63,0.00022191,3]
[330549527,1719561200039,-893.21,0.00022191,3]
[330549528,1719561200048,-532.59,0.00022191,3]
[330549529,1719561200058,-1176.17,0.00022191,3]
[330549530,1719561200069,-4339.37,0.00022191,3]
[330549531,1719561200083,-500.0,0.00022191,3]
[330549532,1719561200093,-1096.31,0.00022191,3]
[330549533,1719561200103,-791.78,0.00022191,3]
[330549534,1719561200113,-500.0,0.00022191,3]
[330549535,1719561200122,-570.88573947,0.00022191,3]
[330549536,1719561200133,-1291.49,0.00022191,3]
[330549537,1719561200142,-1124.86,0.00022191,3]
[330549538,1719561200152,-504.91,0.00022191,3]
[330549539,1719561200161,-588.38,0.00022191,3]
[330549540,1719561200170,-1924.82,0.00022191,3]
[330549541,1719561200180,-1639.09,0.00022191,3]
[330549542,1719561200190,-500.0,0.00022191,3]
[330549543,1719561200201,-500.0,0.00022191,3]
[330549544,1719561200210,-1061.55,0.00022191,3]
[330549545,1719561200220,-1465.35,0.00022191,3]
[330549546,1719561200230,-500.0,0.00022191,3]
[330549547,1719561200240,-2089.57,0.00022191,3]
[330549548,1719561200249,-365.26527453,0.00022191,3]
[330549549,1719561200259,-734.27,0.00022191,3]
[330549550,1719561200268,-948.23,0.00022191,3]
[330549551,1719561200278,-3576.87,0.00022191,3]
[330549552,1719561200287,-3780.4,0.00022191,3]
[330549553,1719561200297,-500.0,0.00022191,3]
[330549554,1719561200306,-770.26,0.00022191,3]
[330549555,1719561200315,-946.83,0.00022191,3]
[330549556,1719561200325,-3935.43,0.00022191,3]
[330549557,1719561200337,-500.0,0.00022191,3]
[330549558,1719561200346,-1446.14,0.00022191,3]
[330549559,1719561200355,-2365.29,0.00022191,3]
[330549560,1719561200365,-1659.75,0.00022191,3]
[330549561,1719561200374,-4503.97,0.00022191,3]
[330549562,1719561200383,-500.0,0.00022191,3]
[330549563,1719561200393,-500.0,0.00022191,3]
[330549564,1719561200402,-950.23,0.00022191,3]
[330549565,1719561200411,-3311.36,0.00022191,3]
[330549566,1719561200420,-500.0,0.00022191,3]
[330549567,1719561200430,-1322.58,0.00022191,3]
[330549568,1719561200439,-783.88,0.00022191,3]
[330549569,1719561200448,-1914.45,0.00022191,3]
[330549570,1719561200457,-500.0,0.00022191,3]
[330549571,1719561200466,-3498.8,0.00022191,3]
[330549572,1719561200476,-1962.72,0.00022191,3]
[330549573,1719561200485,-500.0,0.00022191,3]
[330549574,1719561200494,-500.0,0.00022191,3]
[330549575,1719561200504,-1641.9,0.00022191,3]
[330549576,1719561200513,-612.16,0.00022191,3]
[330549577,1719561200522,-685.98,0.00022191,3]
[330549578,1719561200532,-637.51,0.00022191,3]
[330549579,1719561200541,-3117.56,0.00022191,3]
[330549580,1719561200550,-1141.3,0.00022191,3]
[330549581,1719561200560,-500.0,0.00022191,3]
[330549582,1719561200569,-4395.4,0.00022191,3]
[330549583,1719561200581,-500.0,0.00022191,3]
[330549584,1719561200590,-3970.07,0.00022191,3]
[330549585,1719561200600,-1264.09,0.00022191,3]
[330549586,1719561200610,-2447.28,0.00022191,3]
[330549587,1719561200619,-3602.08,0.00022191,3]
[330549588,1719561200628,-500.0,0.00022191,3]
[330549589,1719561200637,-500.0,0.00022191,3]
[330549590,1719561200646,-529.82673388,0.00022191,3]
[330549591,1719561200655,-764.6,0.00022191,3]
[330549592,1719561200664,-8127.46,0.00022191,3]
[330549593,1719561200674,-3867.01,0.00022191,3]
[330549594,1719561200684,-1319.29,0.00022191,3]
[330549595,1719561200694,-2128.6,0.00022191,3]
[330549596,1719561200703,-2004.62,0.00022191,3]
[330549597,1719561200712,-964.57,0.00022191,3]
[330549598,1719561200722,-543.13,0.00022191,3]
[330549599,1719561200731,-2955.61,0.00022191,3]
[330549600,1719561200741,-5636.27,0.00022191,3]
[330549601,1719561200750,-500.0,0.00022191,3]
[330549602,1719561200759,-4918.69,0.00022191,3]
[330549603,1719561200771,-4066.1,0.00022191,3]
[330549604,1719561200781,-664.5,0.00022191,3]
[330549605,1719561200790,-4196.26,0.00022191,3]
[330549606,1719561200799,-2426.91,0.00022191,3]
[330549607,1719561200808,-500.0,0.00022191,3]
[330549608,1719561200817,-500.0,0.00022191,3]
[330549609,1719561200826,-571.57,0.00022191,3]
[330549610,1719561200838,-619.41,0.00022191,3]
[330549611,1719561200846,-500.0,0.00022191,3]
[330549612,1719561200855,-1310.02,0.00022191,3]
[330549613,1719561200868,-3529.65,0.00022191,3]
[330549614,1719561200878,-790.68,0.00022191,3]
[330549615,1719561200887,-1259.18,0.00022191,3]
[330549616,1719561200896,-803.47,0.00022191,3]
[330549617,1719561200906,-1996.62,0.00022191,3]
[330549618,1719561200916,-3541.7,0.00022191,3]
[330549619,1719561200926,-863.97,0.00022191,3]
[330549620,1719561200935,-530.3,0.00022191,3]
[330549621,1719561200946,-676.52,0.00022191,3]
[330549622,1719561200955,-7586.47,0.00022191,3]
[330549623,1719561200965,-500.0,0.00022191,3]
[330549624,1719561200975,-731.62,0.00022191,3]
[330549625,1719561200984,-500.0,0.00022191,3]
[330549626,1719561200992,-1475.96,0.00022191,3]
[330549627,1719561201002,-955.45,0.00022191,3]
[330549628,1719561201011,-1270.09,0.00022191,3]
[330549629,1719561201020,-1229.77,0.00022191,3]
[330549630,1719561201030,-2329.0,0.00022191,3]
[330549631,1719561201041,-773.16,0.00022191,3]
[330549632,1719561201050,-1393.57,0.00022191,3]
[330549633,1719561201060,-986.15,0.00022191,3]
[330549634,1719561201070,-1485.78,0.00022191,3]
[330549635,1719561201081,-1707.42,0.00022191,3]
[330549636,1719561201091,-500.0,0.00022191,3]
[330549637,1719561201100,-768.85,0.00022191,3]
[330549638,1719561201110,-2012.41,0.00022191,3]
[330549639,1719561201120,-5063.06,0.00022191,3]
[330549640,1719561201130,-921.17,0.00022191,3]
[330549641,1719561201139,-500.0,0.00022191,3]
[330549642,1719561201149,-2449.33,0.00022191,3]
[330549643,1719561201158,-2037.45,0.00022191,3]
[330549644,1719561201167,-1779.04,0.00022191,3]
[330549645,1719561201176,-500.0,0.00022191,3]
[330549646,1719561201185,-500.0,0.00022191,3]
[330549647,1719561201195,-9301.47,0.00022191,3]
[330549648,1719561201204,-1017.79,0.00022191,3]
[330549649,1719561201213,-2900.72,0.00022191,3]
[330549650,1719561201222,-526.59,0.00022191,3]
[330549651,1719561201232,-663.42,0.00022191,3]
[330549652,1719561201242,-500.0,0.00022191,3]
[330549653,1719561201251,-500.0,0.00022191,3]
[330549654,1719561201261,-674.65,0.00022191,3]
[330549655,1719561201271,-2537.99,0.00022191,3]
[330549656,1719561201280,-500.0,0.00022191,3]
[330549657,1719561201289,-1420.13,0.00022191,3]
[330549658,1719561201299,-1037.85,0.00022191,3]
[330549659,1719561201308,-3320.06,0.00022191,3]
[330549660,1719561201317,-3319.78,0.00022191,3]
[330549661,1719561201328,-634.63,0.00022191,3]
[330549662,1719561201337,-56773.66,0.00022191,3]
[330549663,1719561201346,-555.58,0.00022191,3]
[330549664,1719561201356,-625.07,0.00022191,3]
[330549665,1719561201366,-2200.88,0.00022191,3]
[330549666,1719561201376,-941.38,0.00022191,3]
[330549667,1719561201385,-510.63,0.00022191,3]
[330549668,1719561201395,-2030.64,0.00022191,3]
[330549669,1719561201404,-670.5,0.00022191,3]
[330549670,1719561201414,-1092.89,0.00022191,3]
[330549671,1719561201424,-680.1,0.00022191,3]
[330549672,1719561201434,-500.0,0.00022191,3]
[330549673,1719561201444,-916.14,0.00022191,3]
[330549674,1719561201453,-1305.67,0.00022191,3]
[330549675,1719561201463,-608.88,0.00022191,3]
[330549676,1719561201474,-2094.61,0.00022191,3]
[330549677,1719561201483,-912.19,0.00022191,3]
[330549678,1719561201493,-624.72,0.00022191,3]
[330549679,1719561201502,-3883.66,0.00022191,3]
[330549680,1719561201513,-575.25,0.00022191,3]
[330549681,1719561201523,-500.0,0.00022191,3]
[330549682,1719561201532,-1750.92,0.00022191,3]
[330549683,1719561201542,-586.86,0.00022191,3]
[330549684,1719561201551,-1644.79,0.00022191,3]
[330549685,1719561201561,-2240.25,0.00022191,3]
[330549686,1719561201571,-500.0,0.00022191,3]
[330549687,1719561201582,-3442.26,0.00022191,3]
[330549688,1719561201593,-785.73,0.00022191,3]
[330549689,1719561201602,-2119.76,0.00022191,3]
[330549690,1719561201612,-2077.02,0.00022191,3]
[330549691,1719561201623,-3279.62,0.00022191,3]
[330549692,1719561201632,-1177.19,0.00022191,3]
[330549693,1719561201642,-2812.36,0.00022191,3]
[330549694,1719561201651,-500.0,0.00022191,3]
[330549695,1719561201662,-500.0,0.00022191,3]
[330549696,1719561201672,-500.0,0.00022191,3]
[330549697,1719561201681,-500.0,0.00022191,3]
[330549698,1719561201691,-751.3,0.00022191,3]
[330549699,1719561201700,-5691.14,0.00022191,3]
[330549700,1719561201710,-1875.87,0.00022191,3]
[330549701,1719561201719,-2181.6,0.00022191,3]
[330549702,1719561201729,-1783.03,0.00022191,3]
[330549703,1719561201739,-500.0,0.00022191,3]
[330549704,1719561201749,-3820.4,0.00022191,3]
[330549705,1719561201758,-500.0,0.00022191,3]
[330549706,1719561201772,-4551.03,0.00022191,3]
[330549707,1719561201781,-1185.76,0.00022191,3]
[330549708,1719561201791,-500.0,0.00022191,3]
[330549709,1719561201801,-500.0,0.00022191,3]
[330549710,1719561201810,-500.0,0.00022191,3]
[330549711,1719561201820,-500.0,0.00022191,3]
[330549712,1719561201833,-500.0,0.00022191,3]
[330549713,1719561201842,-3480.66,0.00022191,3]
[330549714,1719561201852,-1117.03,0.00022191,3]
[330549715,1719561201862,-710.75,0.00022191,3]
[330549716,1719561201876,-2776.49,0.00022191,3]
[330549717,1719561201885,-500.0,0.00022191,3]
[330549718,1719561201895,-1555.15,0.00022191,3]
[330549719,1719561201905,-5613.75,0.00022191,3]
[330549720,1719561201915,-3058.96,0.00022191,3]
[330549721,1719561201924,-500.0,0.00022191,3]
[330549722,1719561201933,-500.0,0.00022191,3]
[330549723,1719561201944,-820.14,0.00022191,3]
[330549724,1719561201954,-5538.45,0.00022191,3]
[330549725,1719561201964,-918.65,0.00022191,3]
[330549726,1719561201973,-825.28,0.00022191,3]
[330549727,1719561201983,-515.83,0.00022191,3]
[330549728,1719561201993,-500.0,0.00022191,3]
[330549729,1719561202003,-841.57,0.00022191,3]
[330549730,1719561202012,-500.0,0.00022191,3]
[330549731,1719561202022,-592.24,0.00022191,3]
[330549732,1719561202031,-4616.67,0.00022191,3]